fUST/lending_fUST_20250606
["ID","MTS","AMOUNT","RATE_DAILY","PERIOD"]
[364700358,1749211837713,-403.63129652,0.00019178,2]
[364700360,1749211837723,-440.0,0.00019178,2]
[364700362,1749211837732,-430.0,0.00019178,2]
[364700364,1749211837741,-1183.7,0.00019178,2]
[364700366,1749211837750,-440.0,0.00019178,2]
[364700368,1749211837759,-440.0,0.00019178,2]
[364700370,1749211837768,-387.63834238,0.00019178,2]
[364700372,1749211837778,-440.0,0.00019178,2]
[364700374,1749211837788,-351.41348252,0.00019178,2]
[364700376,1749211837797,-440.0,0.00019178,2]
[364700378,1749211837806,-440.0,0.00019178,2]
[364700380,1749211837815,-440.0,0.00019178,2]
[364700382,1749211837824,-440.0,0.00019178,2]
[364700385,1749211837833,-440.0,0.00019178,2]
[364700387,1749211837842,-440.0,0.00019178,2]
[364700388,1749211837852,-359.8985992,0.00019178,2]
[364700390,1749211837863,-440.0,0.00019178,2]
[364700392,1749211837871,-205.69755634,0.00019178,2]
[364700394,1749211837880,-440.0,0.00019178,2]
[364700396,1749211837889,-440.0,0.00019178,2]
[364700398,1749211837898,-440.55814996,0.00019178,2]
[364700400,1749211837907,-456.66,0.00019178,2]
[364700402,1749211837916,-631.88,0.00019178,2]
[364700404,1749211837925,-440.0,0.00019178,2]
[364700406,1749211837934,-1590.82,0.00019178,2]
[364700408,1749211837943,-357.66370567,0.00019178,2]
[364700410,1749211837952,-1467.44,0.00019178,2]
[364700412,1749211837961,-430.0,0.00019178,2]
[364700414,1749211837970,-430.0,0.00019178,2]
[364700416,1749211837979,-440.0,0.00019178,2]
[364700418,1749211837988,-405.91141148,0.00019178,2]
[364700420,1749211837998,-194.76004,0.00019178,2]
[364700422,1749211838007,-500.0,0.00019178,2]
[364700424,1749211838016,-500.0,0.00019451,2]
[364700426,1749211838025,-500.0,0.00019451,2]
[364700428,1749211838035,-411.46357349,0.00019452,2]
[364700430,1749211838045,-440.0,0.00019452,2]
[364700432,1749211838054,-440.0,0.00019452,2]
[364700434,1749211838064,-440.0,0.00019452,2]
[364700436,1749211838073,-440.0,0.00019452,2]
[364700438,1749211838083,-440.0,0.00019452,2]
[364700440,1749211838092,-440.0,0.00019452,2]
[364700442,1749211838105,-440.0,0.00019452,2]
[364700444,1749211838115,-440.0,0.00019452,2]
[364700446,1749211838125,-440.0,0.00019452,2]
[364700448,1749211838134,-440.0,0.00019452,2]
[364700450,1749211838143,-440.0,0.00019452,2]
[364700452,1749211838153,-440.0,0.00019452,2]
[364700454,1749211838162,-422.54619193,0.00019452,2]
[364700456,1749211838171,-557.52164483,0.00019452,2]
[364700458,1749211838182,-440.0,0.00019452,2]
[364700475,1749211838193,-440.0,0.00019452,2]
[364700477,1749211838340,-450.0,0.00019452,2]
[364700479,1749211838349,-403.58921252,0.00019452,2]
[364700481,1749211838359,-413.51471897,0.00019452,2]
[364700483,1749211838368,-440.0,0.00019452,2]
[364700485,1749211838377,-334.81580416,0.00019452,2]
[364700487,1749211838387,-440.0,0.00019452,2]
[364700489,1749211838396,-440.0,0.00019452,2]
[364700491,1749211838405,-440.0,0.00019452,2]
[364700493,1749211838414,-440.0,0.00019452,2]
[364700495,1749211838424,-450.0,0.00019452,2]
[364700497,1749211838433,-440.0,0.00019452,2]
[364700499,1749211838442,-440.0,0.00019452,2]
[364700501,1749211838452,-440.0,0.00019452,2]
[364700503,1749211838464,-440.0,0.00019452,2]
[364700505,1749211838473,-388.13228667,0.00019452,2]
[364700507,1749211838482,-440.0,0.00019452,2]
[364700509,1749211838494,-440.0,0.00019452,2]
[364700511,1749211838509,-440.0,0.00019452,2]
[364700513,1749211838518,-440.0,0.00019452,2]
[364700515,1749211838528,-440.0,0.00019452,2]
[364700517,1749211838537,-440.0,0.00019452,2]
[364700519,1749211838547,-440.0,0.00019452,2]
[364700521,1749211838558,-440.0,0.00019452,2]
[364700523,1749211838571,-500.0,0.00019452,2]
[364700525,1749211838580,-440.0,0.00019452,2]
[364700527,1749211838590,-414.83824822,0.00019452,2]
[364700529,1749211838599,-440.0,0.00019452,2]
[364700531,1749211838608,-440.0,0.00019452,2]
[364700533,1749211838617,-440.0,0.00019452,2]
[364700535,1749211838627,-417.0046739,0.00019452,2]
[364700537,1749211838636,-440.0,0.00019452,2]
[364700539,1749211838645,-440.0,0.00019452,2]
[364700542,1749211838655,-440.0,0.00019452,2]
[364700544,1749211838664,-440.0,0.00019452,2]
[364700546,1749211838673,-440.0,0.00019452,2]
[364700548,1749211838682,-450.0,0.00019452,2]
[364700549,1749211838692,-440.0,0.00019452,2]
[364700551,1749211838700,-440.0,0.00019452,2]
[364700553,1749211838709,-440.0,0.00019452,2]
[364700555,1749211838718,-440.0,0.00019452,2]
[364700557,1749211838728,-440.0,0.00019452,2]
[364700559,1749211838736,-440.0,0.00019452,2]
[364700561,1749211838745,-440.0,0.00019452,2]
[364700563,1749211838754,-440.0,0.00019452,2]
[364700565,1749211838763,-380.0,0.00019452,2]
[364700567,1749211838772,-454.36,0.00019452,2]
[364700569,1749211838781,-440.0,0.00019452,2]
[364700571,1749211838791,-430.2081193,0.00019452,2]
[364700574,1749211838801,-443.45311406,0.00019452,2]
[364700576,1749211838810,-440.0,0.00019452,2]
[364700578,1749211838819,-440.0,0.00019452,2]
[364700580,1749211838828,-440.0,0.00019452,2]
[364700582,1749211838837,-461.26903537,0.00019452,2]
[364700584,1749211838846,-440.0,0.00019452,2]
[364700586,1749211838857,-440.0,0.00019452,2]
[364700588,1749211838865,-442.44938534,0.00019452,2]
[364700590,1749211838875,-440.0,0.00019452,2]
[364700592,1749211838886,-440.0,0.00019452,2]
[364700594,1749211838894,-440.0,0.00019452,2]
[364700596,1749211838904,-440.0,0.00019452,2]
[364700598,1749211838914,-440.0,0.00019452,2]
[364700600,1749211838922,-440.0,0.00019452,2]
[364700602,1749211838932,-440.79405161,0.00019452,2]
[364700604,1749211838940,-328.13166638,0.00019452,2]
[364700606,1749211838950,-440.0,0.00019452,2]
[364700608,1749211838959,-440.0,0.00019452,2]
[364700610,1749211838967,-440.0,0.00019452,2]
[364700612,1749211838976,-397.23,0.00019452,2]
[364700613,1749211838985,-440.0,0.00019452,2]
[364700615,1749211838995,-440.0,0.00019452,2]
[364700617,1749211839004,-440.0,0.00019452,2]
[364700619,1749211839014,-430.0,0.00019452,2]
[364700621,1749211839023,-440.0,0.00019452,2]
[364700624,1749211839033,-440.0,0.00019452,2]
[364700626,1749211839043,-442.77,0.00019452,2]
[364700628,1749211839052,-440.0,0.00019452,2]
[364700629,1749211839061,-403.81641825,0.00019452,2]
[364700631,1749211839071,-440.0,0.00019452,2]
[364700633,1749211839081,-440.0,0.00019452,2]
[364700636,1749211839090,-430.0,0.00019452,2]
[364700638,1749211839101,-440.0,0.00019452,2]
[364700639,1749211839111,-440.0,0.00019452,2]
[364700641,1749211839123,-440.0,0.00019452,2]
[364700644,1749211839132,-440.0,0.00019452,2]
[364700645,1749211839143,-440.0,0.00019452,2]
[364700647,1749211839153,-440.0,0.00019452,2]
[364700649,1749211839163,-360.0,0.00019452,2]
[364700651,1749211839172,-440.0,0.00019452,2]
[364700653,1749211839181,-388.13971711,0.00019452,2]
[364700655,1749211839191,-1235.22,0.00019452,2]
[364700657,1749211839200,-440.0,0.00019452,2]
[364700659,1749211839211,-440.0,0.00019452,2]
[364700661,1749211839220,-440.0,0.00019452,2]
[364700663,1749211839230,-440.0,0.00019452,2]
[364700665,1749211839239,-270.0,0.00019452,2]
[364700667,1749211839249,-329.26940035,0.00019452,2]
[364700669,1749211839258,-578.4,0.00019452,2]
[364700671,1749211839268,-430.0,0.00019452,2]
[364700673,1749211839278,-605.56,0.00019452,2]
[364700675,1749211839287,-440.0,0.00019452,2]
[364700677,1749211839296,-440.0,0.00019452,2]
[364700679,1749211839306,-440.0,0.00019452,2]
[364700681,1749211839315,-440.0,0.00019452,2]
[364700683,1749211839325,-440.0,0.00019452,2]
[364700685,1749211839334,-450.0,0.00019452,2]
[364700687,1749211839344,-440.0,0.00019452,2]
[364700689,1749211839353,-440.0,0.00019452,2]
[364700691,1749211839363,-440.0,0.00019452,2]
[364700693,1749211839373,-440.0,0.00019452,2]
[364700695,1749211839383,-299.82535592,0.00019452,2]
[364700697,1749211839394,-440.0,0.00019452,2]
[364700699,1749211839405,-460.0,0.00019452,2]
[364700701,1749211839414,-440.0,0.00019452,2]
[364700703,1749211839424,-440.0,0.00019452,2]
[364700705,1749211839433,-430.0,0.00019452,2]
[364700707,1749211839443,-440.0,0.00019452,2]
[364700709,1749211839452,-440.0,0.00019452,2]
[364700711,1749211839462,-313.09792175,0.00019452,2]
[364700713,1749211839472,-440.0,0.00019452,2]
[364700715,1749211839483,-511.2,0.00019452,2]
[364700717,1749211839493,-440.0,0.00019452,2]
[364700719,1749211839503,-430.0,0.00019452,2]
[364700721,1749211839513,-415.44151572,0.00019452,2]
[364700723,1749211839522,-440.0,0.00019452,2]
[364700725,1749211839532,-440.0,0.00019452,2]
[364700727,1749211839542,-440.0,0.00019452,2]
[364700729,1749211839552,-440.0,0.00019452,2]
[364700731,1749211839562,-440.0,0.00019452,2]
[364700733,1749211839571,-440.0,0.00019452,2]
[364700735,1749211839581,-381.52853431,0.00019452,2]
[364700737,1749211839590,-233.51602027,0.00019452,2]
[364700739,1749211839600,-440.0,0.00019452,2]
[364700741,1749211839610,-440.0,0.00019452,2]
[364700743,1749211839620,-440.0,0.00019452,2]
[364700745,1749211839629,-440.0,0.00019452,2]
[364700747,1749211839640,-440.0,0.00019452,2]
[364700749,1749211839649,-440.0,0.00019452,2]
[364700751,1749211839659,-440.0,0.00019452,2]
[364700753,1749211839669,-440.0,0.00019452,2]
[364700755,1749211839678,-440.0,0.00019452,2]
[364700757,1749211839687,-440.0,0.00019452,2]
[364700759,1749211839696,-440.0,0.00019452,2]
[364700761,1749211839706,-527.09890554,0.00019452,2]
[364700763,1749211839715,-1024.18,0.00019452,2]
[364700765,1749211839725,-440.0,0.00019452,2]
[364700767,1749211839734,-1930.48,0.00019452,2]
[364700769,1749211839744,-440.0,0.00019452,2]
[364700772,1749211839754,-440.0,0.00019452,2]
[364700774,1749211839763,-440.0,0.00019452,2]
[364700776,1749211839773,-500.0,0.00019452,2]
[364700778,1749211839782,-440.0,0.00019452,2]
[364700780,1749211839792,-1604.28,0.00019452,2]
[364700782,1749211839802,-440.0,0.00019452,2]
[364700784,1749211839812,-440.0,0.00019452,2]
[364700786,1749211839821,-440.0,0.00019452,2]
[364700788,1749211839830,-440.0,0.00019452,2]
[364700790,1749211839841,-440.0,0.00019452,2]
[364700792,1749211839851,-563.76,0.00019452,2]
[364700794,1749211839860,-440.0,0.00019452,2]
[364700796,1749211839870,-430.0,0.00019452,2]
[364700798,1749211839879,-440.0,0.00019452,2]
[364700800,1749211839888,-440.0,0.00019452,2]
[364700802,1749211839897,-440.0,0.00019452,2]
[364700804,1749211839906,-440.0,0.00019452,2]
[364700806,1749211839916,-797.67,0.00019452,2]
[364700808,1749211839925,-360.0,0.00019452,2]
[364700809,1749211839934,-440.0,0.00019452,2]
[364700812,1749211839944,-440.0,0.00019452,2]
[364700814,1749211839953,-430.0,0.00019452,2]
[364700816,1749211839963,-440.0,0.00019452,2]
[364700817,1749211839972,-420.0,0.00019452,2]
[364700819,1749211839982,-409.38317913,0.00019452,2]
[364700822,1749211839991,-440.0,0.00019452,2]
[364700824,1749211840000,-191.86072879,0.00019452,2]
[364700826,1749211840010,-440.0,0.00019452,2]
[364700828,1749211840019,-440.0,0.00019452,2]
[364700829,1749211840028,-430.0,0.00019452,2]
[364700831,1749211840037,-440.0,0.00019452,2]
[364700833,1749211840047,-440.0,0.00019452,2]
[364700835,1749211840057,-440.0,0.00019452,2]
[364700838,1749211840067,-440.0,0.00019452,2]
[364700840,1749211840077,-440.0,0.00019452,2]
[364700841,1749211840086,-440.0,0.00019452,2]
[364700844,1749211840096,-440.0,0.00019452,2]
[364700845,1749211840107,-430.0,0.00019452,2]
[364700847,1749211840116,-440.0,0.00019452,2]
[364700849,1749211840125,-562.25,0.00019452,2]
[364700851,1749211840134,-440.0,0.00019452,2]
[364700853,1749211840145,-430.0,0.00019452,2]
[364700855,1749211840155,-440.0,0.00019452,2]
[364700857,1749211840164,-424.87681519,0.00019452,2]
[364700859,1749211840175,-3054.31,0.00019452,2]
[364700861,1749211840184,-440.0,0.00019452,2]
[364700863,1749211840193,-430.0,0.00019452,2]
[364700866,1749211840203,-440.0,0.00019452,2]
[364700868,1749211840214,-442.05866841,0.00019452,2]
[364700870,1749211840223,-990.37,0.00019452,2]
[364700872,1749211840233,-440.0,0.00019452,2]
[364700874,1749211840242,-440.0,0.00019452,2]
[364700876,1749211840252,-440.0,0.00019452,2]
[364700879,1749211840262,-440.0,0.00019452,2]
[364700882,1749211840271,-440.0,0.00019452,2]
[364700884,1749211840280,-440.0,0.00019452,2]
[364700886,1749211840290,-440.0,0.00019452,2]
[364700889,1749211840299,-400.0,0.00019452,2]
[364700891,1749211840309,-440.0,0.00019452,2]
[364700893,1749211840320,-440.0,0.00019452,2]
[364700895,1749211840330,-440.0,0.00019452,2]
[364700897,1749211840339,-419.42661617,0.00019452,2]
[364700899,1749211840348,-283.11543993,0.00019452,2]
[364700901,1749211840358,-637.69,0.00019452,2]
[364700903,1749211840368,-971.66,0.00019452,2]
[364700905,1749211840377,-440.0,0.00019452,2]
[364700907,1749211840388,-440.0,0.00019452,2]
[364700909,1749211840398,-440.0,0.00019452,2]
[364700911,1749211840407,-440.0,0.00019452,2]
[364700913,1749211840418,-440.0,0.00019452,2]
[364700915,1749211840427,-440.0,0.00019452,2]
[364700917,1749211840437,-440.0,0.00019452,2]
[364700919,1749211840447,-440.0,0.00019452,2]
[364700921,1749211840456,-430.0,0.00019452,2]
[364700923,1749211840466,-440.0,0.00019452,2]
[364700924,1749211840475,-440.0,0.00019452,2]
[364700926,1749211840486,-440.0,0.00019452,2]
[364700929,1749211840496,-733.35,0.00019452,2]
[364700931,1749211840505,-440.0,0.00019452,2]
[364700933,1749211840515,-420.0,0.00019452,2]
[364700935,1749211840524,-897.33,0.00019452,2]
[364700937,1749211840534,-150.0,0.00019452,2]
[364700938,1749211840543,-440.0,0.00019452,2]
[364700940,1749211840553,-440.0,0.00019452,2]
[364700942,1749211840562,-440.0,0.00019452,2]
[364700944,1749211840572,-440.0,0.00019452,2]
[364700946,1749211840581,-440.0,0.00019452,2]
[364700949,1749211840591,-430.0,0.00019452,2]
[364700950,1749211840600,-440.0,0.00019452,2]
[364700953,1749211840610,-440.0,0.00019452,2]
[364700955,1749211840619,-440.0,0.00019452,2]
[364700956,1749211840628,-440.0,0.00019452,2]
[364700958,1749211840637,-347.48998091,0.00019452,2]
[364700960,1749211840647,-460.0,0.00019452,2]
[364700962,1749211840656,-440.0,0.00019452,2]
[364700964,1749211840665,-440.0,0.00019452,2]
[364700966,1749211840675,-1077.24,0.00019452,2]
[364700968,1749211840683,-440.0,0.00019452,2]
[364700970,1749211840693,-440.0,0.00019452,2]
[364700972,1749211840703,-440.0,0.00019452,2]
[364700974,1749211840712,-440.0,0.00019452,2]
[364700976,1749211840725,-440.0,0.00019452,2]
[364700979,1749211840742,-440.0,0.00019452,2]
[364700980,1749211840757,-440.0,0.00019452,2]
[364700983,1749211840767,-1945.86,0.00019452,2]
[364700985,1749211840776,-440.0,0.00019452,2]
[364700986,1749211840785,-430.0,0.00019452,2]
[364700989,1749211840795,-440.0,0.00019452,2]
[364700991,1749211840804,-417.16329317,0.00019452,2]
[364700993,1749211840814,-440.0,0.00019452,2]
[364700996,1749211840823,-440.0,0.00019452,2]
[364700998,1749211840834,-440.0,0.00019452,2]
[364701000,1749211840847,-1183.7,0.00019452,2]
[364701002,1749211840857,-430.0,0.00019452,2]
[364701005,1749211840867,-440.0,0.00019452,2]
[364701006,1749211840876,-440.0,0.00019452,2]
[364701007,1749211840886,-440.0,0.00019452,2]
[364701008,1749211840897,-440.0,0.00019452,2]
[364701009,1749211840908,-440.0,0.00019452,2]
[364701010,1749211840917,-440.0,0.00019452,2]
[364701011,1749211840927,-440.0,0.00019452,2]
[364701012,1749211840936,-440.0,0.00019452,2]
[364701013,1749211840945,-631.88,0.00019452,2]
[364701014,1749211840955,-440.0,0.00019452,2]
[364701015,1749211840964,-1590.82,0.00019452,2]
[364701016,1749211840976,-1467.44,0.00019452,2]
[364701017,1749211840986,-430.0,0.00019452,2]
[364701018,1749211840996,-500.0,0.00019538,2]
[364701019,1749211841010,-500.0,0.00019541,2]
[364701020,1749211841024,-391.65264876,0.00019559,2]
[364701021,1749211841036,-501.4655427,0.0001961,2]
[364701022,1749211841045,-537.978401,0.0001961,2]
[364701023,1749211841055,-1396.00635072,0.00019626,2]
[364701024,1749211841064,-500.0,0.00019721,2]
[364701025,1749211841073,-166.58158457,0.00019726,2]
[364701026,1749211841083,-430.0,0.00019726,2]
[364701028,1749211841093,-440.0,0.00019726,2]
[364701030,1749211841106,-440.0,0.00019726,2]
[364701032,1749211841115,-430.0,0.00019726,2]
[364701034,1749211841124,-440.0,0.00019726,2]
[364701036,1749211841134,-464.47531691,0.00019726,2]
[364701038,1749211841144,-393.73860318,0.00019726,2]
[364701040,1749211841155,-200.15252427,0.00019726,2]
[364701042,1749211841164,-450.0,0.00019726,2]
[364701044,1749211841173,-430.0,0.00019726,2]
[364701046,1749211841184,-455.09914343,0.00019726,2]
[364701048,1749211841194,-430.0,0.00019726,2]
[364701050,1749211841203,-440.0,0.00019726,2]
[364701052,1749211841211,-430.0,0.00019726,2]
[364701054,1749211841221,-430.0,0.00019726,2]
[364701056,1749211841231,-440.0,0.00019726,2]
[364701058,1749211841240,-176.80794452,0.00019726,2]
[364701060,1749211841249,-436.77734418,0.00019726,2]
[364701062,1749211841259,-430.0,0.00019726,2]
[364701064,1749211841269,-440.0,0.00019726,2]
[364701066,1749211841279,-430.0,0.00019726,2]
[364701068,1749211841289,-440.0,0.00019726,2]
[364701070,1749211841299,-452.08819462,0.00019726,2]
[364701072,1749211841308,-576.4959568,0.00019726,2]
[364701074,1749211841318,-440.0,0.00019726,2]
[364701076,1749211841327,-430.0,0.00019726,2]
[364701078,1749211841337,-440.0,0.00019726,2]
[364701080,1749211841347,-430.0,0.00019726,2]
[364701082,1749211841356,-440.0,0.00019726,2]
[364701084,1749211841366,-440.0,0.00019726,2]
[364701085,1749211841375,-489.52861066,0.00019726,2]
[364701087,1749211841385,-430.0,0.00019726,2]
[364701089,1749211841396,-454.36,0.00019726,2]
[364701091,1749211841406,-440.0,0.00019726,2]
[364701093,1749211841416,-440.0,0.00019726,2]
[364701095,1749211841425,-420.0,0.00019726,2]
[364701097,1749211841435,-440.0,0.00019726,2]
[364701099,1749211841445,-440.0,0.00019726,2]
[364701101,1749211841454,-420.0,0.00019726,2]
[364701103,1749211841464,-440.0,0.00019726,2]
[364701105,1749211841474,-440.0,0.00019726,2]
[364701107,1749211841484,-517.30196012,0.00019726,2]
[364701109,1749211841493,-416.62038587,0.00019726,2]
[364701111,1749211841503,-440.0,0.00019726,2]
[364701113,1749211841513,-440.0,0.00019726,2]
[364701115,1749211841523,-430.99897825,0.00019726,2]
[364701117,1749211841532,-440.0,0.00019726,2]
[364701119,1749211841542,-470.99474585,0.00019726,2]
[364701121,1749211841551,-440.0,0.00019726,2]
[364701123,1749211841560,-440.0,0.00019726,2]
[364701125,1749211841570,-442.77,0.00019726,2]
[364701127,1749211841579,-440.0,0.00019726,2]
[364701129,1749211841588,-369.80507402,0.00019726,2]
[364701131,1749211841597,-440.0,0.00019726,2]
[364701133,1749211841606,-153.26146719,0.00019726,2]
[364701147,1749211841734,-430.0,0.00019726,2]
[364701149,1749211841745,-430.0,0.00019726,2]
[364701151,1749211841754,-420.0,0.00019726,2]
[364701153,1749211841764,-430.0,0.00019726,2]
[364701155,1749211841773,-440.0,0.00019726,2]
[364701157,1749211841783,-1235.22,0.00019726,2]
[364701159,1749211841792,-574.5852295,0.00019726,2]
[364701161,1749211841801,-483.78409979,0.00019726,2]
[364701163,1749211841811,-430.0,0.00019726,2]
[364701165,1749211841820,-578.4,0.00019726,2]
[364701167,1749211841829,-605.56,0.00019726,2]
[364701169,1749211841839,-390.0,0.00019726,2]
[364701171,1749211841849,-440.0,0.00019726,2]
[364701173,1749211841859,-420.0,0.00019726,2]
[364701175,1749211841868,-440.0,0.00019726,2]
[364701177,1749211841878,-440.0,0.00019726,2]
[364701179,1749211841887,-420.0,0.00019726,2]
[364701181,1749211841897,-430.0,0.00019726,2]
[364701183,1749211841906,-440.0,0.00019726,2]
[364701185,1749211841915,-440.0,0.00019726,2]
[364701187,1749211841925,-440.0,0.00019726,2]
[364701189,1749211841934,-511.2,0.00019726,2]
[364701191,1749211841944,-440.0,0.00019726,2]
[364701193,1749211841953,-440.0,0.00019726,2]
[364701195,1749211841963,-440.0,0.00019726,2]
[364701197,1749211841972,-243.2182719,0.00019726,2]
[364701199,1749211841983,-327.77088841,0.00019726,2]
[364701201,1749211841992,-420.0,0.00019726,2]
[364701203,1749211842002,-440.0,0.00019726,2]
[364701205,1749211842012,-430.0,0.00019726,2]
[364701207,1749211842021,-420.0,0.00019726,2]
[364701209,1749211842030,-440.0,0.00019726,2]
[364701211,1749211842040,-440.0,0.00019726,2]
[364701213,1749211842050,-440.0,0.00019726,2]
[364701215,1749211842059,-440.0,0.00019726,2]
[364701217,1749211842069,-554.55,0.00019726,2]
[364701219,1749211842078,-400.0,0.00019726,2]
[364701221,1749211842088,-440.0,0.00019726,2]
[364701223,1749211842097,-1024.18,0.00019726,2]
[364701225,1749211842111,-440.0,0.00019726,2]
[364701227,1749211842120,-1930.48,0.00019726,2]
[364701229,1749211842130,-440.0,0.00019726,2]
[364701232,1749211842140,-380.13734886,0.00019726,2]
[364701235,1749211842151,-420.0,0.00019726,2]
[364701237,1749211842161,-420.0,0.00019726,2]
[364701239,1749211842170,-1604.28,0.00019726,2]
[364701241,1749211842181,-420.0,0.00019726,2]
[364701243,1749211842191,-360.0,0.00019726,2]
[364701246,1749211842201,-440.0,0.00019726,2]
[364701248,1749211842211,-426.39452049,0.00019726,2]
[364701249,1749211842220,-440.0,0.00019726,2]
[364701253,1749211842229,-563.76,0.00019726,2]
[364701256,1749211842241,-327.67,0.00019726,2]
[364701259,1749211842250,-440.0,0.00019726,2]
[364701261,1749211842260,-440.0,0.00019726,2]
[364701265,1749211842270,-438.83,0.00019726,2]
[364701268,1749211842281,-470.0,0.00019726,2]
[364701270,1749211842291,-797.67,0.00019726,2]
[364701273,1749211842301,-440.0,0.00019726,2]
[364701277,1749211842311,-430.0,0.00019726,2]
[364701278,1749211842321,-398.1,0.00019726,2]
[364701283,1749211842332,-184.3484285,0.00019726,2]
[364701286,1749211842342,-440.0,0.00019726,2]
[364701289,1749211842352,-440.0,0.00019726,2]
[364701293,1749211842362,-470.0,0.00019726,2]
[364701296,1749211842372,-420.0,0.00019726,2]
[364701299,1749211842382,-440.0,0.00019726,2]
[364701302,1749211842392,-440.0,0.00019726,2]
[364701304,1749211842402,-440.0,0.00019726,2]
[364701306,1749211842412,-440.0,0.00019726,2]
[364701308,1749211842422,-430.0,0.00019726,2]
[364701310,1749211842431,-3054.31,0.00019726,2]
[364701312,1749211842441,-440.0,0.00019726,2]
[364701314,1749211842451,-990.37,0.00019726,2]
[364701316,1749211842461,-298.5202815,0.00019726,2]
[364701319,1749211842472,-440.0,0.00019726,2]
[364701320,1749211842483,-440.0,0.00019726,2]
[364701322,1749211842493,-440.0,0.00019726,2]
[364701325,1749211842503,-440.0,0.00019726,2]
[364701327,1749211842512,-440.0,0.00019726,2]
[364701329,1749211842523,-440.0,0.00019726,2]
[364701331,1749211842533,-440.0,0.00019726,2]
[364701333,1749211842542,-637.69,0.00019726,2]
[364701335,1749211842552,-971.66,0.00019726,2]
[364701337,1749211842562,-440.0,0.00019726,2]
[364701339,1749211842571,-440.0,0.00019726,2]
[364701341,1749211842582,-440.0,0.00019726,2]
[364701343,1749211842591,-440.0,0.00019726,2]
[364701345,1749211842600,-430.0,0.00019726,2]
[364701347,1749211842610,-311.18,0.00019726,2]
[364701349,1749211842619,-440.0,0.00019726,2]
[364701351,1749211842629,-440.0,0.00019726,2]
[364701353,1749211842639,-440.0,0.00019726,2]
[364701355,1749211842649,-733.35,0.00019726,2]
[364701357,1749211842658,-897.33,0.00019726,2]
[364701358,1749211842667,-440.0,0.00019726,2]
[364701360,1749211842676,-283.79220371,0.00019726,2]
[364701362,1749211842686,-440.0,0.00019726,2]
[364701364,1749211842695,-261.92,0.00019726,2]
[364701366,1749211842704,-481.18295285,0.00019726,2]
[364701368,1749211842714,-440.0,0.00019726,2]
[364701370,1749211842723,-440.0,0.00019726,2]
[364701372,1749211842733,-440.0,0.00019726,2]
[364701374,1749211842742,-410.0,0.00019726,2]
[364701376,1749211842752,-1077.24,0.00019726,2]
[364701378,1749211842762,-440.0,0.00019726,2]
[364701380,1749211842771,-440.0,0.00019726,2]
[364701383,1749211842781,-440.0,0.00019726,2]
[364701385,1749211842791,-440.0,0.00019726,2]
[364701387,1749211842800,-440.0,0.00019726,2]
[364701389,1749211842809,-440.0,0.00019726,2]